[Event "*** MasterClass Titled Tuesday Blitz"]
[Site "Chess.com"]
[Date "2017.08.01"]
[Round "2"]
[White "michaelk123"]
[Black "MateusViageiro"]
[Result "0-1"]
[WhiteElo "2337"]
[BlackElo "2309"]
[TimeControl "180+2"]
[EndTime "13:22:29 PDT"]
[Termination "MateusViageiro won by resignation"]

1. d4 {[%clk 0:03:01.9]} 1... Nf6 {[%clk 0:03:00.6]} 2. Bf4 {[%clk 0:03:01.9]}
2... e6 {[%clk 0:03:01.9]} 3. e3 {[%clk 0:03:01.4]} 3... d5 {[%clk 0:03:03.4]}
4. Nf3 {[%clk 0:03:00.8]} 4... c5 {[%clk 0:03:04.3]} 5. c3 {[%clk 0:03:01.2]}
5... Nc6 {[%clk 0:03:04.8]} 6. Nbd2 {[%clk 0:03:01.4]} 6... cxd4 {[%clk
0:03:03.9]} 7. exd4 {[%clk 0:03:01]} 7... Bd6 {[%clk 0:03:03.5]} 8. Bg3 {[%clk
0:02:58.4]} 8... Bxg3 {[%clk 0:03:03.1]} 9. hxg3 {[%clk 0:02:59.1]} 9... Qb6
{[%clk 0:03:04]} 10. Qb3 {[%clk 0:02:50]} 10... Qxb3 {[%clk 0:03:03.1]} 11. axb3
{[%clk 0:02:50.5]} 11... Bd7 {[%clk 0:03:03.1]} 12. b4 {[%clk 0:02:21.5]} 12...
h6 {[%clk 0:03:00.9]} 13. Bd3 {[%clk 0:02:18.6]} 13... Ke7 {[%clk 0:02:46.6]}
14. b5 {[%clk 0:02:15.4]} 14... Nd8 {[%clk 0:02:44.9]} 15. Ke2 {[%clk
0:02:11.8]} 15... Ne8 {[%clk 0:02:26.9]} 16. g4 {[%clk 0:00:40.6]} 16... f6
{[%clk 0:02:21.3]} 17. g5 {[%clk 0:00:39.6]} 17... fxg5 {[%clk 0:02:21.4]} 18.
Nxg5 {[%clk 0:00:37.1]} 18... Rf8 {[%clk 0:02:21.2]} 19. Ngf3 {[%clk 0:00:32.3]}
19... Nd6 {[%clk 0:02:20.8]} 20. Ne5 {[%clk 0:00:26.1]} 20... Be8 {[%clk
0:02:21.5]} 21. Rh3 {[%clk 0:00:24.9]} 21... Rf6 {[%clk 0:02:17.4]} 22. Rg3
{[%clk 0:00:24.6]} 22... g5 {[%clk 0:02:15.8]} 23. Ng4 {[%clk 0:00:22.5]} 23...
Bh5 {[%clk 0:01:55.3]} 24. b6 {[%clk 0:00:21.2]} 24... a6 {[%clk 0:01:49.5]} 25.
Nb3 {[%clk 0:00:17.2]} 25... Nf5 {[%clk 0:01:44.9]} 26. Bxf5 {[%clk 0:00:15.5]}
26... exf5 {[%clk 0:01:43.9]} 27. Re3+ {[%clk 0:00:16.4]} 27... Kf7 {[%clk
0:01:37.2]} 28. Rh1 {[%clk 0:00:17]} 28... Bxg4+ {[%clk 0:01:29.8]} 29. f3
{[%clk 0:00:17.9]} 29... f4 {[%clk 0:01:29.8]} 30. Re5 {[%clk 0:00:17]} 30...
Bf5 {[%clk 0:01:22.2]} 31. Nc5 {[%clk 0:00:14.2]} 31... Rc8 {[%clk 0:01:14.3]}
32. Rxd5 {[%clk 0:00:13.5]} 32... Be6 {[%clk 0:01:13.1]} 33. Rd6 {[%clk
0:00:13.1]} 33... Bc4+ {[%clk 0:01:12.9]} 0-1

[Event "*** MasterClass Titled Tuesday Blitz"]
[Site "Chess.com"]
[Date "2017.08.01"]
[Round "2"]
[White "PulpanJ"]
[Black "SidArun"]
[Result "0-1"]
[WhiteElo "2115"]
[BlackElo "2112"]
[TimeControl "180+2"]
[EndTime "13:22:31 PDT"]
[Termination "SidArun won on time"]

1. e4 {[%clk 0:02:59.3]} 1... c6 {[%clk 0:03:00.5]} 2. c4 {[%clk 0:02:53.1]}
2... d5 {[%clk 0:03:01.1]} 3. cxd5 {[%clk 0:02:52.8]} 3... cxd5 {[%clk
0:03:02.6]} 4. exd5 {[%clk 0:02:54]} 4... Nf6 {[%clk 0:03:04.5]} 5. Qa4+ {[%clk
0:02:54.4]} 5... Bd7 {[%clk 0:03:04.3]} 6. Qb3 {[%clk 0:02:47]} 6... Qc8 {[%clk
0:02:57.2]} 7. Nc3 {[%clk 0:02:41]} 7... a6 {[%clk 0:02:57.9]} 8. Nf3 {[%clk
0:02:40.4]} 8... b5 {[%clk 0:02:57.3]} 9. a4 {[%clk 0:02:39.9]} 9... b4 {[%clk
0:02:20.2]} 10. Qxb4 {[%clk 0:02:39.7]} 10... e6 {[%clk 0:02:19.6]} 11. b3
{[%clk 0:02:20.2]} 11... Bxb4 {[%clk 0:02:18]} 12. Bb2 {[%clk 0:01:00.6]} 12...
exd5 {[%clk 0:02:18]} 13. Nd1 {[%clk 0:00:56.3]} 13... Ne4 {[%clk 0:02:12.2]}
14. Rc1 {[%clk 0:00:54.5]} 14... Qd8 {[%clk 0:01:48.3]} 15. Ne3 {[%clk
0:00:47.6]} 15... Qa5 {[%clk 0:01:45.2]} 16. Rc2 {[%clk 0:00:42.9]} 16... O-O
{[%clk 0:01:42.8]} 17. Be2 {[%clk 0:00:40.6]} 17... Nc6 {[%clk 0:01:28.3]} 18.
O-O {[%clk 0:00:35.1]} 18... d4 {[%clk 0:01:29.2]} 19. Nxd4 {[%clk 0:00:30.3]}
19... Nxd4 {[%clk 0:01:29.2]} 20. Bxd4 {[%clk 0:00:28.4]} 20... Nxd2 {[%clk
0:01:29]} 21. Nc4 {[%clk 0:00:22]} 21... Nxc4 {[%clk 0:01:29]} 22. Bxc4 {[%clk
0:00:23.1]} 22... Be6 {[%clk 0:01:26.7]} 23. h3 {[%clk 0:00:14.1]} 23... Bxc4
{[%clk 0:01:26.9]} 24. Rxc4 {[%clk 0:00:14.1]} 24... Rac8 {[%clk 0:01:28.5]} 25.
Rfc1 {[%clk 0:00:10.5]} 25... Rxc4 {[%clk 0:01:28.7]} 26. Rxc4 {[%clk
0:00:11.9]} 26... Bd6 {[%clk 0:01:29.8]} 27. Bc3 {[%clk 0:00:12.9]} 27... Qd5
{[%clk 0:01:28.7]} 28. f4 {[%clk 0:00:10.9]} 28... Qd1+ {[%clk 0:01:28.3]} 29.
Kh2 {[%clk 0:00:09.4]} 29... Qxb3 {[%clk 0:01:29.7]} 30. Rd4 {[%clk 0:00:09.5]}
30... Qxc3 {[%clk 0:01:30.2]} 31. Rxd6 {[%clk 0:00:09.9]} 31... Qe3 {[%clk
0:01:31.3]} 32. Rxa6 {[%clk 0:00:06.3]} 32... Qxf4+ {[%clk 0:01:32.1]} 33. Kh1
{[%clk 0:00:06.3]} 33... Re8 {[%clk 0:01:31.8]} 34. Re6 {[%clk 0:00:06]} 34...
Rxe6 {[%clk 0:01:32.5]} 0-1

[Event "*** MasterClass Titled Tuesday Blitz"]
[Site "Chess.com"]
[Date "2017.08.01"]
[Round "2"]
[White "hassler2"]
[Black "Journey_to_GrandMaster_YT"]
[Result "1-0"]
[WhiteElo "2316"]
[BlackElo "2312"]
[TimeControl "180+2"]
[EndTime "13:22:32 PDT"]
[Termination "hassler2 won by checkmate"]

1. b3 {[%clk 0:03:01.9]} 1... d6 {[%clk 0:02:59.4]} 2. Bb2 {[%clk 0:03:02]} 2...
e5 {[%clk 0:03:00.1]} 3. e3 {[%clk 0:03:03.9]} 3... Nd7 {[%clk 0:03:00.8]} 4. d4
{[%clk 0:03:05.5]} 4... Ngf6 {[%clk 0:03:00.8]} 5. Nf3 {[%clk 0:03:06.3]} 5...
e4 {[%clk 0:03:01.2]} 6. Nfd2 {[%clk 0:03:07.4]} 6... d5 {[%clk 0:03:02.9]} 7.
c4 {[%clk 0:03:08.9]} 7... c6 {[%clk 0:03:04.4]} 8. Nc3 {[%clk 0:03:10.5]} 8...
Bd6 {[%clk 0:03:05.5]} 9. Be2 {[%clk 0:03:11.9]} 9... O-O {[%clk 0:03:05.8]} 10.
g4 {[%clk 0:03:13.4]} 10... Bb4 {[%clk 0:02:45.7]} 11. h4 {[%clk 0:03:09.1]}
11... Ne8 {[%clk 0:02:27.4]} 12. g5 {[%clk 0:03:07.5]} 12... Nd6 {[%clk
0:02:26.1]} 13. Qc2 {[%clk 0:03:06.9]} 13... a6 {[%clk 0:02:20.2]} 14. O-O-O
{[%clk 0:03:06.9]} 14... b5 {[%clk 0:02:20.5]} 15. c5 {[%clk 0:02:54.4]} 15...
Nf5 {[%clk 0:02:20.1]} 16. h5 {[%clk 0:02:42.1]} 16... Qxg5 {[%clk 0:02:05.8]}
17. Rdg1 {[%clk 0:02:42.4]} 17... Qf6 {[%clk 0:02:06.6]} 18. Ncxe4 {[%clk
0:02:27.2]} 18... dxe4 {[%clk 0:01:59.6]} 19. Nxe4 {[%clk 0:02:29.1]} 19... Qh6
{[%clk 0:01:50.8]} 20. Ng5 {[%clk 0:02:23.9]} 20... Nf6 {[%clk 0:01:37]} 21. Bd3
{[%clk 0:02:24]} 21... Ne7 {[%clk 0:01:34.2]} 22. d5 {[%clk 0:01:45.5]} 22...
Nexd5 {[%clk 0:01:27.7]} 23. Nxh7 {[%clk 0:01:37.2]} 23... Kh8 {[%clk
0:01:00.2]} 24. Kb1 {[%clk 0:01:01]} 24... Rg8 {[%clk 0:00:45.2]} 25. Ng5 {[%clk
0:01:00.7]} 25... Be6 {[%clk 0:00:43]} 26. a3 {[%clk 0:00:59.2]} 26... Ba5
{[%clk 0:00:42.2]} 27. Nxe6 {[%clk 0:00:59.7]} 27... fxe6 {[%clk 0:00:42.6]} 28.
Rg6 {[%clk 0:01:01.3]} 28... Nxe3 {[%clk 0:00:29.9]} 29. fxe3 {[%clk 0:01:00.2]}
29... Qxe3 {[%clk 0:00:30]} 30. h6 {[%clk 0:01:00.8]} 30... Nh7 {[%clk
0:00:11.9]} 31. hxg7+ {[%clk 0:00:59.2]} 31... Rxg7 {[%clk 0:00:12.8]} 32. Rxg7
{[%clk 0:00:57.5]} 32... e5 {[%clk 0:00:06.6]} 33. Rhxh7# {[%clk 0:00:57.4]} 1-0

[Event "*** MasterClass Titled Tuesday Blitz"]
[Site "Chess.com"]
[Date "2017.08.01"]
[Round "2"]
[White "matein28"]
[Black "ehrenfeld"]
[Result "1/2-1/2"]
[WhiteElo "2398"]
[BlackElo "2403"]
[TimeControl "180+2"]
[EndTime "13:22:35 PDT"]
[Termination "Game drawn by agreement"]

1. d4 {[%clk 0:03:02]} 1... Nf6 {[%clk 0:03:00.1]} 2. c4 {[%clk 0:03:02.5]} 2...
e6 {[%clk 0:03:01.2]} 3. Nf3 {[%clk 0:03:03.2]} 3... Bb4+ {[%clk 0:03:01.9]} 4.
Bd2 {[%clk 0:03:03.6]} 4... a5 {[%clk 0:03:02.9]} 5. g3 {[%clk 0:03:04.4]} 5...
d6 {[%clk 0:03:03.8]} 6. Bg2 {[%clk 0:03:05.4]} 6... Nbd7 {[%clk 0:03:05.4]} 7.
O-O {[%clk 0:03:06.6]} 7... e5 {[%clk 0:03:06.7]} 8. a3 {[%clk 0:03:05.5]} 8...
Bxd2 {[%clk 0:03:07]} 9. Nbxd2 {[%clk 0:03:07.5]} 9... O-O {[%clk 0:03:07]} 10.
e4 {[%clk 0:03:03.4]} 10... Qe7 {[%clk 0:02:49.5]} 11. b4 {[%clk 0:02:54.8]}
11... exd4 {[%clk 0:02:36.5]} 12. Nxd4 {[%clk 0:02:55.6]} 12... Ne5 {[%clk
0:02:37.6]} 13. Qe2 {[%clk 0:02:49.6]} 13... Bg4 {[%clk 0:02:33.5]} 14. f3
{[%clk 0:02:47]} 14... Bd7 {[%clk 0:02:33.7]} 15. N2b3 {[%clk 0:02:44]} 15...
axb4 {[%clk 0:02:21.3]} 16. axb4 {[%clk 0:02:46]} 16... g6 {[%clk 0:02:16.2]}
17. c5 {[%clk 0:02:19.3]} 17... Rfd8 {[%clk 0:02:01.7]} 18. Rfd1 {[%clk
0:01:58.1]} 18... Be8 {[%clk 0:01:48.2]} 19. f4 {[%clk 0:01:32.4]} 19... Nc6
{[%clk 0:01:47.7]} 20. Nxc6 {[%clk 0:01:23.2]} 20... Bxc6 {[%clk 0:01:48]} 21.
Rxa8 {[%clk 0:01:24.1]} 21... Rxa8 {[%clk 0:01:47.9]} 22. cxd6 {[%clk
0:01:24.3]} 22... cxd6 {[%clk 0:01:48.5]} 23. Re1 {[%clk 0:01:06]} 23... Re8
{[%clk 0:01:39.1]} 24. Nd2 {[%clk 0:01:07.1]} 24... Qc7 {[%clk 0:01:30.9]} 25.
Qe3 {[%clk 0:01:01.7]} 25... Bxe4 {[%clk 0:01:18.2]} 26. Nxe4 {[%clk 0:00:52.8]}
26... Nxe4 {[%clk 0:01:17.4]} 27. Bxe4 {[%clk 0:00:53.6]} 27... d5 {[%clk
0:01:16.9]} 28. Qd4 {[%clk 0:00:41.9]} 28... dxe4 {[%clk 0:01:14.2]} 29. Rxe4
{[%clk 0:00:43]} 29... Qc1+ {[%clk 0:01:09.6]} 30. Kf2 {[%clk 0:00:44.3]} 30...
Qc2+ {[%clk 0:01:10.2]} 31. Kf3 {[%clk 0:00:40.1]} 31... Qc6 {[%clk 0:00:43.4]}
32. Ke3 {[%clk 0:00:35.2]} 32... Qc1+ {[%clk 0:00:43]} 33. Kf2 {[%clk
0:00:31.3]} 33... Qc2+ {[%clk 0:00:40.5]} 34. Kf3 {[%clk 0:00:30.5]} 1/2-1/2

[Event "*** MasterClass Titled Tuesday Blitz"]
[Site "Chess.com"]
[Date "2017.08.01"]
[Round "2"]
[White "Fisher-Human"]
[Black "Cruel_Yaro"]
[Result "1-0"]
[WhiteElo "2434"]
[BlackElo "2579"]
[TimeControl "180+2"]
[EndTime "13:22:38 PDT"]
[Termination "Fisher-Human won by resignation"]

1. e4 {[%clk 0:03:01.9]} 1... c5 {[%clk 0:03:00.4]} 2. Nc3 {[%clk 0:03:02.1]}
2... a6 {[%clk 0:03:00.3]} 3. g3 {[%clk 0:03:02.7]} 3... b5 {[%clk 0:03:00.3]}
4. Bg2 {[%clk 0:03:03.3]} 4... Bb7 {[%clk 0:03:01.8]} 5. d3 {[%clk 0:03:03.5]}
5... e6 {[%clk 0:03:02.9]} 6. Nge2 {[%clk 0:03:02.2]} 6... b4 {[%clk 0:03:01.6]}
7. Na4 {[%clk 0:03:00.5]} 7... d5 {[%clk 0:03:03]} 8. exd5 {[%clk 0:02:58.1]}
8... Bxd5 {[%clk 0:03:00.6]} 9. Bxd5 {[%clk 0:02:54.5]} 9... Qxd5 {[%clk
0:02:59.6]} 10. O-O {[%clk 0:02:56.4]} 10... Nd7 {[%clk 0:02:59.3]} 11. Nf4
{[%clk 0:02:37.4]} 11... Qc6 {[%clk 0:02:57.2]} 12. b3 {[%clk 0:02:32.4]} 12...
Ngf6 {[%clk 0:02:57.1]} 13. Bb2 {[%clk 0:02:29.3]} 13... h5 {[%clk 0:02:52.4]}
14. Ng2 {[%clk 0:02:27.1]} 14... Bd6 {[%clk 0:02:48.7]} 15. Qe2 {[%clk
0:02:28.4]} 15... O-O-O {[%clk 0:02:37.8]} 16. c3 {[%clk 0:02:21.4]} 16... Kb7
{[%clk 0:02:06.2]} 17. cxb4 {[%clk 0:02:15.4]} 17... cxb4 {[%clk 0:02:06.7]} 18.
Rac1 {[%clk 0:02:15.8]} 18... Qb5 {[%clk 0:02:04.2]} 19. Ne3 {[%clk 0:01:57.3]}
19... Rc8 {[%clk 0:01:37.5]} 20. Nc4 {[%clk 0:01:51.4]} 20... Be7 {[%clk
0:01:36.6]} 21. Bd4 {[%clk 0:01:40.3]} 21... Rc6 {[%clk 0:01:22.8]} 22. Qf3
{[%clk 0:01:35.6]} 22... Rc8 {[%clk 0:01:15.2]} 23. Rfe1 {[%clk 0:01:15]} 23...
Kb8 {[%clk 0:01:05]} 24. Qf4+ {[%clk 0:01:13.3]} 24... Kb7 {[%clk 0:00:47.7]}
25. Qf3 {[%clk 0:01:13.7]} 25... Kb8 {[%clk 0:00:48]} 26. Qf4+ {[%clk
0:01:14.4]} 26... Kb7 {[%clk 0:00:48.2]} 27. h4 {[%clk 0:01:11.1]} 27... R8c7
{[%clk 0:00:41.7]} 28. Be5 {[%clk 0:01:08.4]} 28... Nxe5 {[%clk 0:00:32.8]} 29.
Rxe5 {[%clk 0:01:10.3]} 29... Nd5 {[%clk 0:00:33.8]} 30. Qxf7 {[%clk 0:01:01.1]}
30... Bf6 {[%clk 0:00:29.8]} 31. Nd6+ {[%clk 0:00:59.3]} 31... Rxd6 {[%clk
0:00:29.9]} 32. Rxc7+ {[%clk 0:00:56.9]} 32... Nxc7 {[%clk 0:00:25]} 33. Rxb5+
{[%clk 0:00:58.8]} 33... axb5 {[%clk 0:00:26]} 34. Nc5+ {[%clk 0:00:58.3]} 34...
Kc6 {[%clk 0:00:27.2]} 1-0

[Event "*** MasterClass Titled Tuesday Blitz"]
[Site "Chess.com"]
[Date "2017.08.01"]
[Round "2"]
[White "Divertissement"]
[Black "krzyzan94"]
[Result "0-1"]
[WhiteElo "2410"]
[BlackElo "2535"]
[TimeControl "180+2"]
[EndTime "13:22:51 PDT"]
[Termination "krzyzan94 won by checkmate"]

1. d4 {[%clk 0:03:00.4]} 1... Nf6 {[%clk 0:03:00.5]} 2. Bg5 {[%clk 0:02:56.2]}
2... d5 {[%clk 0:02:53.3]} 3. Nd2 {[%clk 0:02:55]} 3... Nbd7 {[%clk 0:02:51.9]}
4. Ngf3 {[%clk 0:02:54.7]} 4... g6 {[%clk 0:02:53.1]} 5. e3 {[%clk 0:02:53.5]}
5... Bg7 {[%clk 0:02:54.1]} 6. Be2 {[%clk 0:02:50.9]} 6... O-O {[%clk
0:02:55.1]} 7. O-O {[%clk 0:02:51.9]} 7... c6 {[%clk 0:02:44.3]} 8. c4 {[%clk
0:02:51.5]} 8... h6 {[%clk 0:02:40.2]} 9. Bh4 {[%clk 0:02:51.2]} 9... Ne4 {[%clk
0:02:38.6]} 10. cxd5 {[%clk 0:02:43.4]} 10... cxd5 {[%clk 0:02:38.5]} 11. Nxe4
{[%clk 0:02:44.3]} 11... dxe4 {[%clk 0:02:40.4]} 12. Nd2 {[%clk 0:02:45.8]}
12... f5 {[%clk 0:02:41.2]} 13. Qb3+ {[%clk 0:02:42.5]} 13... Kh7 {[%clk
0:02:41.1]} 14. f3 {[%clk 0:02:40.3]} 14... g5 {[%clk 0:02:35]} 15. Bf2 {[%clk
0:02:40.9]} 15... exf3 {[%clk 0:02:33.4]} 16. Bxf3 {[%clk 0:02:38.8]} 16... e5
{[%clk 0:02:34.1]} 17. Bd5 {[%clk 0:02:02.8]} 17... Nf6 {[%clk 0:02:29.5]} 18.
Be6 {[%clk 0:01:58.9]} 18... exd4 {[%clk 0:02:19.4]} 19. exd4 {[%clk 0:01:58.9]}
19... Ng4 {[%clk 0:02:20]} 20. Nf3 {[%clk 0:01:25.7]} 20... Nxf2 {[%clk
0:02:06.4]} 21. Rxf2 {[%clk 0:01:26.3]} 21... g4 {[%clk 0:02:08]} 22. Ne5 {[%clk
0:00:56.1]} 22... Qxd4 {[%clk 0:02:05]} 23. Nf7 {[%clk 0:00:45.4]} 23... Qf6
{[%clk 0:01:32]} 24. Bd5 {[%clk 0:00:21.9]} 24... Bd7 {[%clk 0:01:18.8]} 25.
Raf1 {[%clk 0:00:21.5]} 25... Rae8 {[%clk 0:01:13]} 26. Kh1 {[%clk 0:00:09.2]}
26... Re7 {[%clk 0:01:11.7]} 27. Qxb7 {[%clk 0:00:05.5]} 27... Be6 {[%clk
0:01:02.4]} 28. Bxe6 {[%clk 0:00:02.2]} 28... Qxe6 {[%clk 0:00:59]} 29. Ng5+
{[%clk 0:00:02.4]} 29... hxg5 {[%clk 0:00:59.3]} 30. Qb3 {[%clk 0:00:03.3]}
30... Qxb3 {[%clk 0:00:59.6]} 31. axb3 {[%clk 0:00:05.2]} 31... f4 {[%clk
0:01:01.3]} 32. h3 {[%clk 0:00:05.8]} 32... g3 {[%clk 0:01:02.2]} 33. Rf3 {[%clk
0:00:07.1]} 33... Rfe8 {[%clk 0:01:03.5]} 34. Rc3 {[%clk 0:00:08.1]} 34... Bxc3
{[%clk 0:01:03.8]} 35. h4 {[%clk 0:00:08]} 35... Re1 {[%clk 0:01:04.5]} 36. hxg5
{[%clk 0:00:08.9]} 36... Rxf1# {[%clk 0:01:05.5]} 0-1

[Event "*** MasterClass Titled Tuesday Blitz"]
[Site "Chess.com"]
[Date "2017.08.01"]
[Round "2"]
[White "Saitama_Hero"]
[Black "Ar4uha"]
[Result "1-0"]
[WhiteElo "2224"]
[BlackElo "2449"]
[TimeControl "180+2"]
[EndTime "13:22:54 PDT"]
[Termination "Saitama_Hero won by resignation"]

1. d4 {[%clk 0:03:01.9]} 1... Nf6 {[%clk 0:02:48.1]} 2. Bg5 {[%clk 0:03:00.6]}
2... e6 {[%clk 0:02:50]} 3. Nf3 {[%clk 0:02:59.5]} 3... h6 {[%clk 0:02:51.1]} 4.
Bh4 {[%clk 0:02:56.1]} 4... c5 {[%clk 0:02:52]} 5. e3 {[%clk 0:02:54]} 5... Be7
{[%clk 0:02:53.2]} 6. Nbd2 {[%clk 0:02:53.7]} 6... b6 {[%clk 0:02:54.7]} 7. Bd3
{[%clk 0:02:52.3]} 7... Bb7 {[%clk 0:02:56.1]} 8. O-O {[%clk 0:02:53.5]} 8...
Nc6 {[%clk 0:02:56.6]} 9. c4 {[%clk 0:02:51.7]} 9... O-O {[%clk 0:02:54.3]} 10.
Rc1 {[%clk 0:02:47.4]} 10... cxd4 {[%clk 0:02:53.5]} 11. exd4 {[%clk 0:02:47]}
11... d5 {[%clk 0:02:54.9]} 12. cxd5 {[%clk 0:02:41]} 12... Nxd5 {[%clk
0:02:56.8]} 13. Bg3 {[%clk 0:02:33.8]} 13... Bf6 {[%clk 0:02:55.8]} 14. Ne4
{[%clk 0:02:26.6]} 14... Bxd4 {[%clk 0:02:56.7]} 15. Nxd4 {[%clk 0:02:26.9]}
15... Nxd4 {[%clk 0:02:58.6]} 16. Nd6 {[%clk 0:02:23.5]} 16... Rb8 {[%clk
0:02:52]} 17. Qg4 {[%clk 0:01:56.6]} 17... Qf6 {[%clk 0:01:39.6]} 18. Rfe1
{[%clk 0:01:57.4]} 18... Nf5 {[%clk 0:01:33]} 19. Be5 {[%clk 0:01:52.7]} 19...
Qg5 {[%clk 0:01:27.6]} 20. Qxg5 {[%clk 0:01:52.7]} 20... hxg5 {[%clk 0:01:29.5]}
21. Nxf5 {[%clk 0:01:53.6]} 21... exf5 {[%clk 0:01:31.4]} 22. Bxb8 {[%clk
0:01:54.8]} 22... Rxb8 {[%clk 0:01:33.2]} 23. Bxf5 {[%clk 0:01:55.8]} 23... g6
{[%clk 0:01:35.1]} 24. Be4 {[%clk 0:01:55.6]} 24... Nf4 {[%clk 0:01:36.5]} 25.
Bxb7 {[%clk 0:01:55.6]} 25... Rxb7 {[%clk 0:01:38.4]} 26. Rcd1 {[%clk
0:01:56.4]} 26... Kg7 {[%clk 0:01:38.6]} 27. g3 {[%clk 0:01:56.8]} 27... Ne6
{[%clk 0:01:39.8]} 28. Rd5 {[%clk 0:01:50.8]} 28... Kf6 {[%clk 0:01:40.8]} 29.
Red1 {[%clk 0:01:48.8]} 29... Rc7 {[%clk 0:01:42.2]} 30. Rd7 {[%clk 0:01:46.8]}
30... Rc2 {[%clk 0:01:43.2]} 31. Rxa7 {[%clk 0:01:47.9]} 31... Rxb2 {[%clk
0:01:43.9]} 32. Ra6 {[%clk 0:01:48.1]} 32... g4 {[%clk 0:01:44]} 33. a4 {[%clk
0:01:47]} 33... Ng5 {[%clk 0:01:44.4]} 34. Rd6+ {[%clk 0:01:10]} 34... Kf5
{[%clk 0:01:45.1]} 35. Raxb6 {[%clk 0:01:08.7]} 35... Nh3+ {[%clk 0:01:45.9]}
36. Kf1 {[%clk 0:01:07.9]} 36... Rxf2+ {[%clk 0:01:47.5]} 37. Ke1 {[%clk
0:01:09.4]} 37... Rxh2 {[%clk 0:01:48.4]} 38. a5 {[%clk 0:00:56]} 38... Ra2
{[%clk 0:01:48.5]} 39. a6 {[%clk 0:00:55.5]} 39... Ke4 {[%clk 0:01:49.8]} 40.
Rb7 {[%clk 0:00:45.1]} 40... Ng5 {[%clk 0:01:49]} 41. a7 {[%clk 0:00:41]} 41...
Ke3 {[%clk 0:01:50.2]} 42. Re7+ {[%clk 0:00:39.9]} 42... Ne4 {[%clk 0:01:50.9]}
43. Kd1 {[%clk 0:00:29.9]} 43... f5 {[%clk 0:01:48.3]} 44. Rd8 {[%clk
0:00:30.1]} 44... Kf3 {[%clk 0:01:49.4]} 45. a8=Q {[%clk 0:00:28.1]} 45... Rxa8
{[%clk 0:01:50.7]} 46. Rxa8 {[%clk 0:00:27.5]} 46... Kxg3 {[%clk 0:01:52.6]} 47.
Ra6 {[%clk 0:00:25.2]} 47... g5 {[%clk 0:01:53.6]} 48. Ra5 {[%clk 0:00:25.6]}
48... Kf4 {[%clk 0:01:54.2]} 49. Rf7 {[%clk 0:00:26.3]} 49... Ng3 {[%clk
0:01:54.8]} 50. Ke1 {[%clk 0:00:23.3]} 50... Kf3 {[%clk 0:01:55.4]} 51. Raxf5+
{[%clk 0:00:23.3]} 51... Nxf5 {[%clk 0:01:55.3]} 52. Rxf5+ {[%clk 0:00:25.2]}
52... Kg2 {[%clk 0:01:55.9]} 53. Rxg5 {[%clk 0:00:26.6]} 53... g3 {[%clk
0:01:57.8]} 54. Ke2 {[%clk 0:00:26.2]} 54... Kh2 {[%clk 0:01:59.3]} 55. Kf3
{[%clk 0:00:25]} 55... g2 {[%clk 0:02:00.3]} 56. Rxg2+ {[%clk 0:00:25.7]} 56...
Kh1 {[%clk 0:02:02.2]} 57. Rg6 {[%clk 0:00:25.3]} 1-0

[Event "*** MasterClass Titled Tuesday Blitz"]
[Site "Chess.com"]
[Date "2017.08.01"]
[Round "2"]
[White "scrapnel"]
[Black "DrVelja"]
[Result "1/2-1/2"]
[WhiteElo "2510"]
[BlackElo "2528"]
[TimeControl "180+2"]
[EndTime "13:22:57 PDT"]
[Termination "Game drawn by agreement"]

1. d4 {[%clk 0:03:01.9]} 1... Nf6 {[%clk 0:03:00.8]} 2. c4 {[%clk 0:03:02.6]}
2... g6 {[%clk 0:03:02]} 3. Nc3 {[%clk 0:03:03.8]} 3... Bg7 {[%clk 0:03:03.9]}
4. e4 {[%clk 0:03:05]} 4... d6 {[%clk 0:03:04.8]} 5. Be2 {[%clk 0:03:06.4]} 5...
O-O {[%clk 0:03:05.7]} 6. Nf3 {[%clk 0:03:07.8]} 6... e5 {[%clk 0:03:05.9]} 7.
dxe5 {[%clk 0:03:08.9]} 7... dxe5 {[%clk 0:03:06.8]} 8. Qxd8 {[%clk 0:03:10.4]}
8... Rxd8 {[%clk 0:03:07.6]} 9. Bg5 {[%clk 0:03:11.8]} 9... Re8 {[%clk
0:03:08.9]} 10. Nd5 {[%clk 0:03:12.2]} 10... Nxd5 {[%clk 0:03:10.3]} 11. cxd5
{[%clk 0:03:13.5]} 11... c6 {[%clk 0:03:11.9]} 12. Bc4 {[%clk 0:03:15]} 12...
cxd5 {[%clk 0:03:08.9]} 13. Bxd5 {[%clk 0:03:16]} 13... Na6 {[%clk 0:03:05.5]}
14. O-O-O {[%clk 0:03:11]} 14... Nc7 {[%clk 0:02:52.1]} 15. Bb3 {[%clk
0:03:09.5]} 15... h6 {[%clk 0:02:45.6]} 16. Be3 {[%clk 0:03:07.6]} 16... Be6
{[%clk 0:02:31.7]} 17. Bxe6 {[%clk 0:03:05]} 17... Nxe6 {[%clk 0:02:32.3]} 18.
Kb1 {[%clk 0:03:02.1]} 18... f5 {[%clk 0:02:05.9]} 19. Rhe1 {[%clk 0:02:01.2]}
19... f4 {[%clk 0:01:09.8]} 20. Bd2 {[%clk 0:01:53.5]} 20... Ng5 {[%clk
0:00:48.6]} 21. Nxg5 {[%clk 0:01:50.8]} 21... hxg5 {[%clk 0:00:50.5]} 22. Bc3
{[%clk 0:01:43.8]} 22... Rad8 {[%clk 0:00:51.4]} 23. f3 {[%clk 0:01:44.5]} 23...
Kf7 {[%clk 0:00:51.8]} 24. Kc2 {[%clk 0:01:39.6]} 24... Ke6 {[%clk 0:00:50.6]}
25. Rxd8 {[%clk 0:01:38.3]} 25... Rxd8 {[%clk 0:00:51.3]} 26. Rd1 {[%clk
0:01:39.7]} 26... Rxd1 {[%clk 0:00:52.3]} 27. Kxd1 {[%clk 0:01:39.9]} 27... Bf8
{[%clk 0:00:51.6]} 28. Ke2 {[%clk 0:01:39.1]} 28... Bd6 {[%clk 0:00:26.9]} 29.
Kd3 {[%clk 0:01:39.6]} 29... Kd7 {[%clk 0:00:28.4]} 30. Kc4 {[%clk 0:01:38]}
30... Kc6 {[%clk 0:00:30]} 31. a4 {[%clk 0:01:38.5]} 31... a6 {[%clk 0:00:28.7]}
32. Bb4 {[%clk 0:01:29.5]} 32... Bxb4 {[%clk 0:00:26.3]} 33. Kxb4 {[%clk
0:01:29.8]} 33... b6 {[%clk 0:00:16.9]} 34. Kc4 {[%clk 0:01:23.6]} 34... Kd6
{[%clk 0:00:17.4]} 35. Kb4 {[%clk 0:01:12.5]} 35... Kc6 {[%clk 0:00:17.9]} 36.
Kc4 {[%clk 0:01:04.9]} 36... Kd6 {[%clk 0:00:19]} 37. b4 {[%clk 0:00:59.4]}
37... Kc6 {[%clk 0:00:17.1]} 38. b5+ {[%clk 0:00:57.9]} 38... axb5+ {[%clk
0:00:18.7]} 39. axb5+ {[%clk 0:00:58.6]} 39... Kd6 {[%clk 0:00:20.4]} 40. Kb4
{[%clk 0:00:57.3]} 40... Ke6 {[%clk 0:00:21.3]} 41. Kc4 {[%clk 0:00:57.1]} 41...
Kd6 {[%clk 0:00:22.6]} 42. Kb4 {[%clk 0:00:58]} 42... Ke6 {[%clk 0:00:23.9]}
1/2-1/2